bitfinex/quotes_SOLUSD_20250403
["timestamp","ask_amount","ask_price","bid_price","bid_amount"]
[1743687415678,0.063,114.34,114.3,0.42648471]
[1743687415853,48.85781056,114.34,114.3,0.28432314]
[1743687416478,0.063,114.34,114.3,49.0791337]
[1743687416773,48.85781056,114.34,114.3,0.28432314]
[1743687416946,48.79481056,114.33,114.3,9.03302314]
[1743687417273,0.063,114.34,114.3,9.03302314]
[1743687417476,0.063,114.34,114.31,0.14216157]
[1743687417677,0.063,114.34,114.33,0.28432314]
[1743687418176,0.063,114.34,114.3,8.7487]
[1743687418375,48.85781056,114.34,114.3,8.7487]
[1743687418672,48.79481056,114.32,114.28,8.89226157]
[1743687418873,48.79481056,114.32,114.28,8.7501]
[1743687419258,48.79481056,114.3,114.27,8.751]
[1743687419953,135.7,114.32,114.25,57.57721056]
[1743687420158,48.79481056,114.29,114.25,8.7824]
[1743687420362,48.79481056,114.28,114.25,0.03]
[1743687421059,48.79481056,114.26,114.25,0.03]
[1743687421652,67.58662099,114.26,114.25,0.03]
[1743687421854,6.3786,114.23,114.2,0.063]
[1743687422355,6.3786,114.28,114.21,49.22129527]
[1743687422577,6.3786,114.28,114.21,0.42648471]
[1743687422578,48.79481056,114.27,114.21,0.42648471]
[1743687422782,6.3786,114.28,114.22,48.79481056]
[1743687423157,6.0483,114.33,114.27,0.28432314]
[1743687423372,48.79481056,114.31,114.26,48.93697213]
[1743687423578,14.7952,114.33,114.26,49.0791337]
[1743687423579,141.7483,114.33,114.26,49.0791337]
[1743687423880,135.763,114.34,114.21,402.3439]
[1743687424061,8.809,114.34,114.25,19.07613357]
[1743687424266,48.79481056,114.29,114.25,0.28432314]
[1743687424492,135.7,114.32,114.25,48.93697213]
[1743687424691,135.7,114.32,114.21,413.5639]
[1743687424692,48.79481056,114.29,114.21,413.5639]
[1743687424880,166.3736,114.34,114.29,8.89176157]
[1743687424881,0.063,114.34,114.29,8.89176157]
[1743687425084,0.063,114.34,114.26,18.79181043]
[1743687425085,48.79481056,114.31,114.26,18.79181043]
[1743687425283,48.79481056,114.27,114.23,0.14216157]
[1743687425591,48.79481056,114.31,114.23,0.28432314]
[1743687425592,135.7,114.3,114.23,0.28432314]
[1743687425793,48.79481056,114.28,114.23,49.22129527]
[1743687425986,135.7,114.3,114.26,0.28432314]
[1743687426186,48.79481056,114.3,114.26,0.28432314]
[1743687426592,135.7,114.33,114.26,0.28432314]
[1743687426785,48.79481056,114.31,114.26,49.0791337]
[1743687427005,48.79481056,114.31,114.27,8.7512]
[1743687427307,48.79481056,114.3,114.27,8.7512]
[1743687427680,48.79481056,114.29,114.25,8.7521]
[1743687428379,11.803,114.34,114.28,0.28432314]
[1743687428600,11.803,114.34,114.26,0.28432314]
[1743687428601,48.79481056,114.3,114.26,0.28432314]
[1743687429011,48.79481056,114.3,114.27,8.7512]
[1743687429180,48.79481056,114.3,114.23,22.02706157]
[1743687429381,48.79481056,114.27,114.24,8.89566157]
[1743687429597,135.7,114.3,114.24,8.7535]
[1743687429803,135.7,114.32,114.26,49.0791337]
[1743687430007,0.063,114.34,114.28,49.22129527]
[1743687430189,0.063,114.34,114.26,18.79181043]
[1743687430190,0.063,114.34,114.31,48.79481056]
[1743687430381,0.063,114.34,114.3,0.14216157]
[1743687430577,0.063,114.34,114.31,26.0]
[1743687430796,0.063,114.34,114.31,74.79481056]
[1743687430988,0.063,114.34,114.33,8.7466]
[1743687431179,0.063,114.34,114.31,34.7478]
[1743687431403,0.063,114.34,114.32,49.22129527]
[1743687431578,0.063,114.34,114.33,48.93697213]
[1743687431914,0.063,114.34,114.33,67.87094413]
[1743687432503,0.063,114.34,114.33,49.22129527]
[1743687432688,0.063,114.34,114.33,67.87094413]
[1743687432886,0.063,114.34,114.31,75.26774886]
[1743687432887,0.063,114.34,114.31,34.7478]
[1743687433087,48.85781056,114.34,114.3,8.7486]
[1743687433298,48.85781056,114.34,114.28,8.7501]
[1743687433499,48.85781056,114.34,114.29,48.93697213]
[1743687433711,48.85781056,114.34,114.3,0.14216157]
[1743687433911,48.79481056,114.32,114.27,8.7509]
[1743687434222,0.063,114.34,114.31,0.28432314]
[1743687434915,0.063,114.34,114.31,74.79481056]
[1743687435097,0.063,114.34,114.33,49.22129527]
[1743687435298,55.45711056,114.41,114.36,26.0]
[1743687435502,6.6623,114.41,114.37,49.22129527]
[1743687435723,0.063,114.42,114.39,48.79481056]
[1743687435928,48.85781056,114.42,114.37,48.79481056]
[1743687436097,48.85781056,114.42,114.37,0.28432314]
[1743687436424,0.063,114.42,114.39,0.42648471]
[1743687436597,0.063,114.42,114.4,49.22129527]
[1743687436786,0.063,114.42,114.41,0.42648471]
[1743687436992,0.063,114.42,114.38,9.02702314]
[1743687437194,0.063,114.42,114.4,48.79481056]
[1743687437491,0.063,114.42,114.38,8.7427]
[1743687437886,48.79481056,114.4,114.36,8.7439]
[1743687438090,135.763,114.42,114.35,8.745]
[1743687438290,48.79481056,114.4,114.35,8.745]
[1743687438490,48.79481056,114.4,114.36,0.14216157]
[1743687438716,48.79481056,114.39,114.34,57.54031056]
[1743687438900,48.79481056,114.38,114.34,0.14216157]
[1743687439210,135.763,114.42,114.36,0.14216157]
[1743687439211,48.79481056,114.4,114.36,0.14216157]
[1743687439409,0.063,114.42,114.37,0.28432314]
[1743687439618,48.79481056,114.41,114.37,0.28432314]
[1743687439924,8.8028,114.42,114.35,0.42648471]
[1743687440093,48.79481056,114.4,114.35,0.42648471]
[1743687440293,48.79481056,114.37,114.33,8.7466]
[1743687440487,48.79481056,114.37,114.32,8.747]
[1743687440724,48.79481056,114.35,114.31,8.7477]
[1743687440923,0.14216157,114.39,114.28,57.54521056]
[1743687440924,48.79481056,114.33,114.28,57.54521056]
[1743687441101,28.2367,114.37,114.29,48.79481056]
[1743687441102,135.7,114.36,114.29,48.79481056]
[1743687441419,48.79481056,114.35,114.3,48.79481056]
[1743687441597,48.79481056,114.33,114.28,57.54521056]
[1743687441793,18.64964886,114.34,114.27,8.7508]
[1743687442103,48.79481056,114.32,114.27,8.7508]
[1743687442291,48.79481056,114.31,114.25,0.03]
[1743687442494,135.7,114.32,114.25,57.57721056]
[1743687442802,48.79481056,114.28,114.25,0.03]
[1743687443000,18.79181043,114.28,114.25,0.03]
[1743687443307,48.79481056,114.26,114.25,0.03]
[1743687443714,67.44445942,114.26,114.25,0.03]
[1743687443923,67.58662099,114.26,114.25,0.03]
[1743687444616,154.34964886,114.25,114.2,0.063]
[1743687444810,48.79481056,114.22,114.2,0.063]
[1743687445012,48.79481056,114.21,114.2,0.063]
[1743687445195,135.7,114.23,114.2,0.063]
[1743687445391,48.79481056,114.21,114.2,0.063]
[1743687445608,67.44445942,114.21,114.2,0.063]
[1743687445807,67.58662099,114.21,114.2,0.063]
[1743687446495,67.58662099,114.21,114.17,30.03]
[1743687446496,0.14216157,114.19,114.17,30.03]
[1743687446694,48.79481056,114.18,114.17,30.03]
[1743687446895,132.01935469,114.18,114.17,30.03]
[1743687447107,132.51935469,114.18,114.17,30.03]
[1743687447314,18.64964886,114.14,114.13,0.03]
[1743687447496,67.44445942,114.14,114.13,30.03]
[1743687447933,67.58662099,114.14,114.13,30.03]
[1743687448110,79.55094413,114.14,114.13,30.03]
[1743687448312,79.26662099,114.14,114.13,30.03]
[1743687448620,11.68,114.14,114.13,0.03]
[1743687448820,48.79481056,114.14,114.13,0.03]
[1743687449608,6.5955,114.18,114.13,0.03]
[1743687449818,55.39031056,114.18,114.13,48.82481056]
[1743687450126,48.79481056,114.19,114.13,26.03]
[1743687450439,11.66,114.21,114.15,48.79481056]
[1743687450605,11.66,114.21,114.17,48.79481056]
[1743687450922,55.26031056,114.24,114.18,48.79481056]
[1743687451125,135.7,114.26,114.2,48.79481056]
[1743687451341,26.88681875,114.28,114.22,48.79481056]
[1743687451342,48.79481056,114.28,114.22,48.79481056]
[1743687451631,142.2191,114.29,114.22,48.79481056]
[1743687451806,6.5191,114.29,114.24,49.0791337]
[1743687452005,184.49481056,114.3,114.25,48.79481056]
[1743687452204,48.79481056,114.29,114.24,49.0791337]
[1743687452411,48.79481056,114.3,114.25,48.79481056]
[1743687452605,160.76340937,114.32,114.23,26.0]
[1743687452606,27.53991043,114.31,114.23,26.0]
[1743687452808,48.79481056,114.29,114.23,48.79481056]
[1743687453027,18.64964886,114.29,114.23,57.54901056]
[1743687453239,48.79481056,114.28,114.23,8.7542]
[1743687453529,184.49481056,114.3,114.24,49.0791337]
[1743687453739,184.49481056,114.3,114.25,48.79481056]
[1743687453937,48.79481056,114.29,114.23,57.54901056]
[1743687454100,147.32,114.32,114.24,19.07613357]
[1743687454312,147.32,114.32,114.25,48.79481056]
[1743687454609,55.21091056,114.34,114.29,0.28432314]
[1743687454828,55.21091056,114.34,114.28,48.79481056]
[1743687455027,48.79481056,114.32,114.27,8.7507]
[1743687455342,48.79481056,114.3,114.25,8.7524]
[1743687455649,135.7,114.33,114.26,48.79481056]
[1743687455803,48.79481056,114.32,114.26,0.14216157]
[1743687456004,48.79481056,114.32,114.26,0.42648471]
[1743687456211,48.79481056,114.31,114.26,48.79481056]
[1743687456412,48.79481056,114.32,114.27,48.93697213]
[1743687456919,48.79481056,114.28,114.24,0.28432314]
[1743687457245,48.79481056,114.28,114.23,8.754]
[1743687457554,163.09784886,114.31,114.23,57.54881056]
[1743687457850,48.79481056,114.29,114.23,57.54881056]
[1743687458161,48.79481056,114.28,114.23,57.54881056]
[1743687458755,48.79481056,114.29,114.24,49.22129527]
[1743687458918,135.763,114.34,114.28,48.79481056]
[1743687459117,0.063,114.34,114.31,8.7481]
[1743687459330,0.063,114.34,114.29,74.79481056]
[1743687459518,48.85781056,114.34,114.29,26.0]
[1743687459719,0.063,114.34,114.29,74.79481056]
[1743687460026,48.79481056,114.33,114.28,0.42648471]
[1743687460217,48.79481056,114.32,114.27,48.79481056]
[1743687460419,48.79481056,114.32,114.27,57.54601056]
[1743687460647,48.79481056,114.31,114.27,0.28432314]
[1743687460834,48.79481056,114.3,114.24,57.54811056]
[1743687461024,48.79481056,114.31,114.25,49.22129527]
[1743687461227,184.49481056,114.32,114.27,0.28432314]
[1743687461425,48.79481056,114.32,114.27,0.28432314]
[1743687461961,8.747,114.33,114.27,0.28432314]
[1743687462172,48.79481056,114.32,114.27,0.28432314]
[1743687462478,147.263,114.34,114.27,49.0791337]
[1743687462771,48.85781056,114.34,114.29,48.79481056]
[1743687463070,48.85781056,114.34,114.29,57.54391056]
[1743687463473,0.063,114.34,114.3,49.0791337]
[1743687463676,0.063,114.34,114.32,48.79481056]
[1743687463852,48.85781056,114.34,114.29,57.54391056]
[1743687464043,0.063,114.34,114.29,57.54391056]
[1743687464240,48.79481056,114.33,114.28,9.03442314]
[1743687464445,8.809,114.34,114.31,49.0791337]
[1743687464446,0.063,114.34,114.31,49.0791337]
[1743687464674,0.063,114.34,114.31,75.0791337]
[1743687464977,0.0001,114.34,114.33,67.87094413]
[1743687465177,0.063,114.42,114.33,67.87094413]
[1743687465178,0.063,114.42,114.36,19.07613357]
[1743687465473,0.063,114.42,114.36,0.28432314]
[1743687465474,48.79481056,114.41,114.36,0.28432314]
[1743687465693,48.79481056,114.38,114.32,8.7469]
[1743687465842,48.79481056,114.37,114.33,0.28432314]
[1743687466044,48.79481056,114.36,114.33,0.28432314]
[1743687466240,48.79481056,114.36,114.32,8.7469]
[1743687466451,48.79481056,114.35,114.31,0.14216157]
[1743687466750,30.12964886,114.37,114.3,8.7484]
[1743687466954,11.48,114.37,114.3,57.54321056]
[1743687467165,11.48,114.37,114.32,0.28432314]
[1743687467339,48.79481056,114.35,114.27,21.8763]
[1743687467545,38.87314886,114.37,114.29,0.28432314]
[1743687467546,48.79481056,114.33,114.29,0.28432314]
[1743687468049,48.79481056,114.34,114.29,0.14216157]
[1743687468251,135.7,114.36,114.29,48.93697213]
[1743687468550,135.7,114.36,114.3,48.93697213]
[1743687468750,48.79481056,114.36,114.31,0.14216157]
[1743687469052,147.18,114.37,114.31,0.14216157]
[1743687469053,48.79481056,114.35,114.31,0.14216157]
[1743687469245,48.79481056,114.34,114.3,8.89086157]
[1743687469455,48.79481056,114.35,114.3,57.68567213]
[1743687469954,135.7,114.37,114.31,48.93697213]
[1743687470171,48.79481056,114.37,114.32,0.14216157]
[1743687470485,195.93481056,114.38,114.33,48.93697213]
[1743687470652,60.23481056,114.38,114.33,48.93697213]
[1743687470847,11.44,114.38,114.34,0.14216157]
[1743687471088,135.763,114.42,114.35,48.93697213]
[1743687471249,0.063,114.42,114.39,74.79481056]
[1743687471455,0.063,114.42,114.4,49.0791337]
[1743687471856,0.063,114.42,114.4,0.28432314]
[1743687472164,0.063,114.42,114.38,48.79481056]
[1743687472582,48.85781056,114.42,114.37,0.28432314]
[1743687472884,48.79481056,114.39,114.35,8.7447]
[1743687473051,48.79481056,114.38,114.34,8.7456]
[1743687473255,48.79481056,114.38,114.33,57.54111056]
[1743687473553,48.79481056,114.39,114.34,48.93697213]
[1743687473753,48.79481056,114.37,114.33,8.7463]
[1743687473984,48.79481056,114.38,114.33,8.7463]
[1743687474175,48.79481056,114.38,114.34,0.28432314]
[1743687474378,48.79481056,114.38,114.33,8.7463]
[1743687474580,48.79481056,114.35,114.3,8.7489]
[1743687474770,48.79481056,114.34,114.3,8.7489]
[1743687474975,147.06,114.37,114.3,8.7489]
[1743687474976,48.79481056,114.35,114.3,8.7489]
[1743687475178,48.79481056,114.31,114.25,327.32]
[1743687475359,48.79481056,114.3,114.23,8.7542]
[1743687475560,48.79481056,114.3,114.25,0.28432314]
[1743687475789,135.7,114.35,114.28,26.14216157]
[1743687475968,155.7839,114.37,114.29,0.28432314]
[1743687476167,155.7839,114.37,114.3,48.79481056]
[1743687476362,155.7839,114.37,114.3,49.0791337]
[1743687476363,48.79481056,114.35,114.3,49.0791337]
[1743687476996,135.7,114.41,114.33,49.22129527]
[1743687477182,48.79481056,114.41,114.36,8.7443]
[1743687477387,48.85781056,114.42,114.37,49.22129527]
[1743687477585,48.79481056,114.4,114.36,8.7443]
[1743687478071,0.063,114.42,114.36,57.53911056]
[1743687478269,17.9796,114.43,114.37,0.28432314]
[1743687478492,48.79481056,114.41,114.37,0.28432314]
[1743687478803,17.9796,114.43,114.37,0.28432314]
[1743687478967,66.77441056,114.43,114.37,49.22129527]
[1743687479168,48.79481056,114.44,114.4,8.7412]
[1743687479484,48.79481056,114.42,114.38,0.28432314]
[1743687479691,48.79481056,114.43,114.38,57.8218337]
[1743687479986,11.403,114.46,114.4,0.28432314]
[1743687480374,48.79481056,114.44,114.4,0.28432314]
[1743687481265,48.79481056,114.41,114.36,8.88646157]
[1743687481461,135.7,114.44,114.39,26.0]
[1743687481694,0.063,114.46,114.42,0.28432314]
[1743687481895,0.063,114.46,114.43,48.79481056]
[1743687482190,0.063,114.46,114.44,49.0791337]
[1743687482500,0.063,114.46,114.45,0.28432314]
[1743687482681,0.063,114.46,114.45,49.0791337]
[1743687482987,0.063,114.46,114.45,49.22129527]
[1743687483391,0.063,114.46,114.45,48.79481056]
[1743687483603,0.063,114.46,114.45,49.0791337]
[1743687483784,0.063,114.46,114.45,49.22129527]
[1743687483976,0.063,114.46,114.45,0.28432314]
[1743687484176,0.063,114.46,114.43,57.53341056]
[1743687484398,0.063,114.46,114.43,0.28432314]
[1743687484575,48.85781056,114.46,114.42,0.28432314]
[1743687484770,48.79481056,114.45,114.4,8.7406]
[1743687484974,0.063,114.46,114.4,8.7406]
[1743687484975,0.063,114.46,114.4,57.53541056]
[1743687485168,18.79181043,114.44,114.36,8.7441]
[1743687485370,48.79481056,114.39,114.34,8.88796157]
[1743687485578,48.79481056,114.4,114.35,0.28432314]
[1743687485877,48.79481056,114.4,114.35,48.79481056]
[1743687486066,146.98,114.43,114.38,0.14216157]
[1743687486267,48.79481056,114.44,114.39,0.28432314]
[1743687486467,0.063,114.46,114.41,0.28432314]
[1743687486696,48.79481056,114.45,114.4,48.79481056]
[1743687486899,0.063,114.46,114.41,48.79481056]
[1743687487123,0.063,114.46,114.44,0.28432314]
[1743687487416,0.063,114.46,114.45,49.22129527]
[1743687487624,0.063,114.46,114.45,76.60834413]
[1743687488203,0.063,114.46,114.45,125.40315469]
[1743687488406,0.063,114.46,114.45,87.88834413]
[1743687489417,0.063,114.5,114.49,19.07613357]
[1743687489607,0.063,114.53,114.52,45.07613357]
[1743687489914,0.063,114.53,114.52,93.87094413]
[1743687490503,0.063,114.53,114.52,0.28432314]
[1743687490709,0.063,114.53,114.51,0.42648471]
[1743687491018,0.063,114.53,114.52,67.87094413]
[1743687491202,0.063,114.53,114.52,49.22129527]
[1743687491404,141.886,114.62,114.53,0.14216157]
[1743687491605,67.44445942,114.59,114.49,19.07613357]
[1743687491838,48.79481056,114.55,114.51,0.14216157]
[1743687492115,135.7,114.58,114.53,0.28432314]
[1743687492314,30.5383,114.61,114.54,0.14216157]
[1743687492534,8.7252,114.61,114.54,0.14216157]
[1743687492817,0.063,114.58,114.55,0.14216157]
[1743687493007,0.063,114.58,114.57,0.28432314]
[1743687493207,0.063,114.58,114.57,49.22129527]
[1743687493619,0.063,114.58,114.55,48.79481056]
[1743687493802,48.79481056,114.56,114.45,517.40144757]
[1743687493998,48.79481056,114.53,114.46,8.7366]
[1743687494219,48.79481056,114.54,114.49,48.79481056]
[1743687494718,48.79481056,114.54,114.5,0.14216157]
[1743687495022,48.79481056,114.51,114.47,0.14216157]
[1743687495203,48.79481056,114.52,114.47,48.93697213]
[1743687495401,0.14216157,114.56,114.46,8.7366]
[1743687495402,48.79481056,114.5,114.46,8.7366]
[1743687495610,8.7313,114.53,114.47,0.28432314]
[1743687495924,135.7,114.57,114.49,48.79481056]
[1743687496123,48.79481056,114.56,114.5,48.93697213]
[1743687496307,0.063,114.58,114.55,48.79481056]
[1743687496506,0.063,114.58,114.57,49.22129527]
[1743687496832,0.063,114.58,114.57,0.28432314]
[1743687497133,0.063,114.58,114.55,0.28432314]
[1743687497316,0.063,114.58,114.53,48.79481056]
[1743687497504,0.063,114.58,114.54,0.28432314]
[1743687497704,0.063,114.58,114.56,0.28432314]
[1743687498519,0.063,114.58,114.56,49.0791337]
[1743687498731,48.85781056,114.58,114.53,57.95249527]
[1743687499223,48.85781056,114.58,114.53,57.52601056]
[1743687499400,48.85781056,114.58,114.53,8.7312]
[1743687499601,48.85781056,114.58,114.54,0.28432314]
[1743687499806,57.58541056,114.58,114.54,0.28432314]
[1743687500006,48.85781056,114.58,114.54,0.28432314]
[1743687500305,0.063,114.58,114.56,0.28432314]
[1743687501930,0.063,114.58,114.54,0.42648471]
[1743687502139,0.063,114.58,114.56,0.42648471]
[1743687502430,0.063,114.58,114.57,0.09620633]
[1743687502629,0.063,114.58,114.57,67.54066575]
[1743687503252,0.063,114.58,114.57,67.44445942]
[1743687503407,0.063,114.58,114.55,18.64964886]
[1743687503609,48.85781056,114.58,114.54,8.7301]
[1743687504208,48.85781056,114.58,114.53,8.7311]
[1743687504504,0.063,114.58,114.55,0.28432314]
[1743687504819,0.063,114.58,114.55,49.22129527]
[1743687505021,0.063,114.58,114.53,30.5594]
[1743687505208,0.063,114.58,114.54,0.14216157]
[1743687505405,0.063,114.58,114.55,48.79481056]
[1743687505618,0.063,114.58,114.54,67.87094413]
[1743687505818,0.063,114.58,114.55,8.7298]
[1743687506117,0.063,114.58,114.54,67.87094413]
[1743687506118,0.063,114.58,114.56,49.22129527]
[1743687506319,0.063,114.58,114.57,67.58662099]
[1743687506511,0.063,114.58,114.57,67.87094413]
[1743687506716,0.0001,114.58,114.57,116.66575469]
[1743687506918,0.063,114.65,114.61,26.14216157]
[1743687507136,0.0001,114.65,114.64,67.87094413]
[1743687507644,0.0001,114.65,114.64,148.57094413]
[1743687507841,0.0001,114.65,114.64,157.29384413]
[1743687508024,0.0001,114.65,114.64,27.79903357]
[1743687508219,0.0001,114.65,114.64,76.59384413]
[1743687508421,0.063,114.7,114.67,26.0]
[1743687508629,0.063,114.7,114.69,67.72878256]
[1743687508822,0.063,114.7,114.66,0.14216157]
[1743687509050,0.063,114.7,114.67,48.79481056]
[1743687509229,0.063,114.7,114.68,0.28432314]
[1743687509931,0.063,114.7,114.69,49.0791337]
[1743687510125,0.063,114.7,114.68,48.79481056]
[1743687510748,0.063,114.7,114.67,57.51491056]
[1743687510932,0.063,114.7,114.69,48.79481056]
[1743687511138,0.063,114.75,114.7,19.07613357]
[1743687511332,0.063,114.75,114.74,49.0791337]
[1743687511641,0.063,114.75,114.73,48.79481056]
[1743687511841,0.063,114.75,114.73,8.7161]
[1743687512035,0.063,114.75,114.73,57.51091056]
[1743687512426,0.063,114.75,114.74,67.87094413]
[1743687512629,6.4766,114.84,114.74,67.87094413]
[1743687512927,6.4766,114.84,114.79,48.79481056]
[1743687513129,6.4766,114.84,114.77,0.28432314]
[1743687513130,6.4766,114.84,114.8,48.79481056]
[1743687513327,48.79481056,114.83,114.77,49.0791337]
[1743687513628,6.4766,114.84,114.77,49.0791337]
[1743687513849,6.4766,114.84,114.78,48.79481056]
[1743687514025,6.4766,114.84,114.79,48.79481056]
[1743687514356,1.5946,114.87,114.8,48.79481056]
[1743687514559,32.0642,114.87,114.78,49.0791337]
[1743687514734,48.79481056,114.82,114.77,48.79481056]
[1743687514934,48.79481056,114.81,114.76,49.0791337]
[1743687515127,48.79481056,114.79,114.73,18.79181043]
[1743687515454,48.79481056,114.79,114.74,48.79481056]
[1743687515658,48.79481056,114.78,114.71,38.78911043]
[1743687515828,11.28,114.82,114.74,48.79481056]
[1743687516023,8.71,114.81,114.75,48.79481056]
[1743687516332,146.96,114.86,114.79,67.87094413]
[1743687516550,146.96,114.86,114.76,0.14216157]
[1743687516551,48.79481056,114.83,114.74,111.2036]
[1743687516726,135.7,114.85,114.77,74.79481056]
[1743687516935,48.79481056,114.83,114.77,74.79481056]
[1743687517157,48.79481056,114.84,114.79,0.28432314]
[1743687517344,48.79481056,114.84,114.79,48.79481056]
[1743687517645,48.79481056,114.84,114.78,49.0791337]
[1743687517852,48.79481056,114.82,114.75,18.933972]
[1743687518069,8.7085,114.83,114.79,48.79481056]
[1743687518226,8.7085,114.83,114.72,21.7921]
[1743687518227,48.79481056,114.8,114.72,21.7921]
[1743687518555,48.79481056,114.8,114.74,48.79481056]
[1743687518763,8.7085,114.83,114.77,48.93697213]
[1743687518928,57.50251056,114.84,114.79,49.0791337]
[1743687519248,48.79481056,114.83,114.73,11.24]
[1743687519547,48.79481056,114.79,114.74,48.79481056]
[1743687519750,48.79481056,114.79,114.73,48.79481056]
[1743687519954,57.50781056,114.77,114.7,18.79181043]
[1743687520137,48.79481056,114.76,114.7,48.79481056]
[1743687520338,8.713,114.77,114.71,48.79481056]
[1743687520648,48.79481056,114.77,114.69,18.64964886]
[1743687520841,48.79481056,114.75,114.68,18.79181043]
[1743687521151,48.79481056,114.75,114.69,48.79481056]
[1743687521350,48.79481056,114.75,114.7,48.79481056]
[1743687521552,30.4933,114.78,114.72,48.79481056]
[1743687521937,8.7126,114.78,114.73,48.79481056]
[1743687524750,48.79481056,114.76,114.7,48.79481056]
[1743687524956,172.542,114.79,114.71,26.0]
[1743687525160,48.79481056,114.75,114.67,326.63]
[1743687525455,48.79481056,114.74,114.69,48.79481056]
[1743687526055,57.51011056,114.74,114.67,326.63]
[1743687526240,8.7153,114.74,114.69,48.79481056]
[1743687526650,8.7153,114.74,114.7,48.79481056]
[1743687526844,8.7153,114.74,114.69,48.79481056]
[1743687527045,57.51011056,114.74,114.69,49.0791337]
[1743687527247,57.51011056,114.74,114.71,0.28432314]
[1743687527248,8.7153,114.74,114.71,0.28432314]
[1743687527448,57.51011056,114.74,114.67,0.03]
[1743687527762,48.79481056,114.73,114.68,48.79481056]
[1743687527942,8.7176,114.71,114.67,48.82481056]
[1743687528146,57.51201056,114.72,114.67,48.82481056]
[1743687528345,8.7172,114.72,114.68,48.79481056]
[1743687528739,8.7156,114.74,114.7,48.79481056]
[1743687528933,21.7852,114.76,114.67,18.67964886]
[1743687528934,8.7138,114.76,114.71,48.79481056]
[1743687529237,48.79481056,114.75,114.67,0.03]
[1743687529442,48.79481056,114.75,114.7,48.79481056]
[1743687529657,48.79481056,114.74,114.69,48.79481056]
[1743687529863,48.79481056,114.74,114.68,48.79481056]
[1743687530038,48.79481056,114.72,114.67,0.03]
[1743687530362,48.79481056,114.69,114.67,0.03]
[1743687530559,48.79481056,114.7,114.67,0.03]
[1743687530738,135.7,114.72,114.67,0.03]
[1743687530944,48.79481056,114.68,114.67,0.03]
[1743687531143,48.79481056,114.69,114.67,0.03]
[1743687531560,48.79481056,114.68,114.67,0.0001]
[1743687531754,184.49481056,114.68,114.67,0.0001]
[1743687532059,30.5222,114.67,114.58,48.79481056]
[1743687532248,48.79481056,114.64,114.59,48.79481056]
[1743687532764,135.7,114.66,114.62,48.79481056]
[1743687532980,57.51541056,114.67,114.62,48.79481056]
[1743687532981,8.7206,114.67,114.62,48.79481056]
[1743687533143,8.7202,114.68,114.65,48.79481056]
[1743687533460,8.7202,114.68,114.64,26.0]
[1743687533644,48.79481056,114.67,114.61,0.14216157]
[1743687533844,8.7202,114.68,114.63,48.79481056]
[1743687534047,14.8003,114.69,114.64,48.79481056]
[1743687534265,14.8003,114.69,114.62,0.28432314]
[1743687534266,57.51241056,114.71,114.66,48.79481056]
[1743687534779,19.2438,114.74,114.7,48.79481056]
[1743687534780,15.1397,114.74,114.7,48.79481056]
[1743687535061,85.72281056,114.74,114.69,48.79481056]
[1743687535265,48.79481056,114.72,114.66,26.0]
[1743687535470,36.928,114.74,114.68,48.79481056]
[1743687535765,8.713,114.77,114.72,49.0791337]
[1743687535965,57.50781056,114.77,114.71,26.0]
[1743687536150,79.29041056,114.77,114.72,48.79481056]
[1743687536351,57.50781056,114.77,114.72,48.79481056]
[1743687536573,48.79481056,114.76,114.71,74.79481056]
[1743687536772,48.79481056,114.76,114.71,83.51231056]
[1743687536959,135.7,114.83,114.75,48.79481056]
[1743687537167,8.7092,114.82,114.75,0.42648471]
[1743687537369,21.8269,114.87,114.8,48.79481056]
[1743687537671,8.7066,114.86,114.78,19.07613357]
[1743687537850,57.56351056,114.87,114.82,48.79481056]
[1743687538047,8.707,114.85,114.81,48.79481056]
[1743687538278,57.50111056,114.86,114.81,48.79481056]
[1743687538473,57.56351056,114.87,114.82,48.79481056]
[1743687538772,57.56351056,114.87,114.84,49.0791337]
[1743687538773,0.063,114.87,114.84,49.0791337]
[1743687538965,0.063,114.87,114.84,48.79481056]
[1743687539158,8.7685,114.87,114.81,8.71]
[1743687539365,57.56331056,114.87,114.81,49.0791337]